[Event "Romanian-ch Youth Open U16 2024"]
[Site "Eforie Nord"]
[Date "2024.04.12"]
[Round "1.1"]
[White "Magold, Filip"]
[Black "Mihaila, Marika-Nicolas"]
[Result "1-0"]
[ECO "C06"]
[WhiteElo "2408"]
[BlackElo "1858"]
[Annotator "TA"]
[PlyCount "41"]
[EventDate "2024.04.10"]
[EventType "swiss"]
[EventCountry "ROU"]
[SourceTitle "playchess.com"]
[Source "ChessBase"]
[SourceQuality "1"]
[TimeControl "5400+30"]

{[%evp 20,41,73,51,133,91,79,81,88,54,62,0,230,238,247,215,321,262,331,321,324,333,410,403]} 1. e4 {[%emt 0:00:23][%cal Be2e4,Be4e5][%mdl 32]} e6 {[%emt 0:00:14]} 2. d4 {[%emt 0:00:27]} d5 {[%emt 0:00:15]} 3. Nd2 {[%emt 0:00:54]} Nf6 {[%emt 0:07:05]} 4. e5 {[%emt 0:00:16]} Nfd7 {[%emt 0:00:07]} 5. Bd3 {[%emt 0:00:39]} c5 {[%emt 0:00:09]} 6. c3 {[%emt 0:00:07]} Nc6 {[%emt 0:00:47]} 7. Ne2 {[%emt 0:00:50]} cxd4 {[%emt 0:01:34]} 8. cxd4 {[%emt 0:00:10]} Qb6 {[%emt 0:00:13]} 9. Nf3 {[%emt 0:06:48]} Be7 {[%emt 0:03:39]} 10. O-O {[%emt 0:00:44]} O-O {[%emt 0:08:53]} 11. a3 {[%emt 0:05:57]} a5 {[%emt 0:03:57]} (11... f6 $14) 12. Bc2 {[%emt 0:05:44]} Re8 {[%emt 1:09:37]} 13. h4 {[%emt 0:07:17]} Qd8 {[%emt 0:00:00] White is better.} 14. Qd3 $40 {[%emt 0:03:53][%mdl 128] White has some attack.} Nf8 {[%emt 0:00:00]} 15. Ng5 {[%emt 0:04:09]} (15. Bg5 $14) 15... Bxg5 $2 {[%emt 0:00:00] [#]} (15... b6 $1 $11) 16. Bxg5 $18 {[%emt 0:00:21]} Qc7 {[%emt 0:00:00] Black is weak on the dark squares} 17. Rac1 {[%emt 0:00:43]} b5 {[%emt 0:00:00]} (17... b6 {was called for.}) 18. Rfd1 {[%emt 0:03:39]} ({Inferior is} 18. Qxb5 Ba6 19. Qc5 Bxe2 $19) 18... Ba6 {[%emt 0:00:00]} 19. Nf4 {[%emt 0:02:53][%cal Be2f4,Bf4h5,Bh5g7][%mdl 32]} Qa7 {[%emt 0:00:00][%cal Oa7d4]} ({Avoid the trap} 19... h6 $2 20. Bf6 gxf6 21. Qg3+ Ng6 (21... Kh8 $2 22. exf6 Ng6 23. Nxg6+ fxg6 24. Qxc7 $18) 22. Bxg6 $18) 20. Nh5 {[%emt 0:00:54]} Ng6 {[%emt 0:00:00] [#]} 21. Nxg7 $1 {[%emt 0:01:54][%mdl 512] Weighted Error Value: White=0.25 (precise) /Black=0.60.  Loses game:     	---       	Black=1      Mistake:       	White=1     	Black=1      Inaccurate:     	White=2     	---        OK:         	White=3     	Black=4} 1-0

[Event "Romanian-ch Youth Open U16 2024"]
[Site "Eforie Nord"]
[Date "2024.04.12"]
[Round "1.2"]
[White "Dragoi, Albert-Marian"]
[Black "Cnejev, Vladimir-Alexandru"]
[Result "0-1"]
[ECO "C57"]
[WhiteElo "1833"]
[BlackElo "2353"]
[Annotator "RC"]
[PlyCount "80"]
[EventDate "2024.04.10"]
[EventType "swiss"]
[EventCountry "ROU"]
[SourceTitle "playchess.com"]
[Source "ChessBase"]
[SourceQuality "1"]
[TimeControl "5400+30"]

1. e4 {[%emt 0:00:06]} e5 {[%emt 0:00:07]} 2. Nf3 {[%emt 0:00:06]} Nc6 {[%emt 0:00:07]} 3. Bc4 {[%emt 0:00:27]} Nf6 {[%emt 0:00:14]} 4. Ng5 {[%emt 0:00:41]} d5 {[%emt 0:00:05]} 5. exd5 {[%emt 0:00:07]} b5 {[%emt 0:00:30]} 6. dxc6 {[%emt 0:07:41]} bxc4 {[%emt 0:02:16]} 7. Nc3 {[%emt 0:05:59]} h6 {[%emt 0:25:59]} 8. Nge4 {[%emt 0:10:32]} Nxe4 {[%emt 0:01:27]} 9. Nxe4 {[%emt 0:00:54]} Qd5 {[%emt 0:05:41]} 10. Qf3 {[%emt 0:13:53]} Be6 {[%emt 0:00:30]} 11. O-O {[%emt 0:03:03]} O-O-O {[%emt 0:12:00]} 12. b3 {[%emt 0:18:17]} Qxc6 {[%emt 0:04:18]} 13. bxc4 {[%emt 0:05:43]} f5 {[%emt 0:12:40]} 14. Ng5 {[%emt 0:05:49]} e4 {[%emt 0:05:55]} 15. Qh3 {[%emt 0:00:34]} Bxc4 {[%emt 0:02:39]} 16. Qxf5+ {[%emt 0:06:57]} Kb8 {[%emt 0:14:01]} 17. Nf7 {[%emt 0:03:27]} Bxf7 {[%emt 0:00:23]} 18. Qxf7 {[%emt 0:15:14]} Bc5 {[%emt 0:02:00]} 19. Bb2 {[%emt 0:00:00]} Rhf8 {[%emt 0:07:01]} 20. Qb3+ {[%emt 0:00:00]} Ka8 {[%emt 0:00:00]} 21. Be5 {[%emt 0:00:00]} Rxd2 {[%emt 0:00:56]} 22. Rab1 {[%emt 0:00:00]} e3 {[%emt 0:02:05]} 23. Bxg7 {[%emt 0:00:11]} Rfd8 {[%emt 0:00:26]} 24. Bxh6 {[%emt 0:01:08]} Rxf2 {[%emt 0:00:34]} 25. Rxf2 {[%emt 0:00:37]} exf2+ {[%emt 0:00:02]} 26. Kf1 {[%emt 0:00:30]} Qa6+ {[%emt 0:00:59]} 27. c4 {[%emt 0:00:05]} Bb6 {[%emt 0:00:28]} 28. Qb5 {[%emt 0:00:57]} Qa3 {[%emt 0:00:34]} 29. Qc6+ {[%emt 0:01:11]} Kb8 {[%emt 0:00:05]} 30. Qe4 {[%emt 0:00:08]} Qa4 {[%emt 0:00:54]} 31. Be3 {[%emt 0:00:55]} Re8 {[%emt 0:00:28]} 32. Qd3 {[%emt 0:00:23]} Qxa2 {[%emt 0:00:34]} 33. Bd4 {[%emt 0:00:52]} Qxb1+ {[%emt 0:00:28]} 34. Qxb1 {[%emt 0:00:24]} Re1+ {[%emt 0:00:03]} 35. Qxe1 {[%emt 0:00:18]} fxe1=Q+ {[%emt 0:00:07]} 36. Kxe1 {[%emt 0:00:11]} Bxd4 {[%emt 0:00:03]} 37. h4 {[%emt 0:00:35]} Bf6 {[%emt 0:00:31]} 38. h5 {[%emt 0:00:14]} Bg5 {[%emt 0:00:05]} 39. Kd1 {[%emt 0:00:13]} Kb7 {[%emt 0:00:10]} 40. Kc2 {[%emt 0:00:08]} Kc6 {[%emt 0:00:17]} 0-1

[Event "Romanian-ch Youth Open U16 2024"]
[Site "Eforie Nord"]
[Date "2024.04.13"]
[Round "2.1"]
[White "Vedmediuc, Artiom"]
[Black "Magold, Filip"]
[Result "1/2-1/2"]
[ECO "C02"]
[WhiteElo "2034"]
[BlackElo "2408"]
[Annotator "RC"]
[PlyCount "113"]
[EventDate "2024.04.10"]
[EventType "swiss"]
[EventCountry "ROU"]
[SourceTitle "playchess.com"]
[Source "ChessBase"]
[SourceQuality "1"]
[TimeControl "5400+30"]

1. e4 {[%emt 0:00:03]} e6 {[%emt 0:00:27]} 2. d4 {[%emt 0:00:56]} d5 {[%emt 0:00:15]} 3. e5 {[%emt 0:01:28]} c5 {[%emt 0:00:55]} 4. c3 {[%emt 0:00:04]} Nc6 {[%emt 0:00:08]} 5. Nf3 {[%emt 0:00:04]} Nge7 {[%emt 0:00:11]} 6. Na3 {[%emt 0:00:44]} Nf5 {[%emt 0:02:53]} 7. Nc2 {[%emt 0:00:05]} Bd7 {[%emt 0:03:57]} 8. Bd3 {[%emt 0:00:22]} c4 {[%emt 0:03:58]} 9. Be2 {[%emt 0:00:25]} Be7 {[%emt 0:00:59]} 10. O-O {[%emt 0:00:07]} g5 {[%emt 0:01:47]} 11. Ne3 {[%emt 0:09:35]} h5 {[%emt 0:02:59]} 12. b3 {[%emt 0:07:08]} g4 {[%emt 0:02:57]} 13. Ne1 {[%emt 0:00:36]} b5 {[%emt 0:01:52]} 14. g3 {[%emt 0:08:28]} Qb6 {[%emt 0:14:37]} 15. N1g2 {[%emt 0:20:30]} Nfxd4 {[%emt 0:13:25]} 16. cxd4 {[%emt 0:01:14]} Nxd4 {[%emt 0:02:14]} 17. bxc4 {[%emt 0:03:27]} bxc4 {[%emt 0:05:15]} 18. Nf4 {[%emt 0:01:47]} Bc6 {[%emt 0:02:48]} 19. Nc2 {[%emt 0:02:09]} Nxc2 {[%emt 0:02:45]} 20. Qxc2 {[%emt 0:00:04]} h4 {[%emt 0:00:02]} 21. Rb1 {[%emt 0:04:19]} Qc5 {[%emt 0:02:36]} 22. Nxe6 {[%emt 0:04:42]} fxe6 {[%emt 0:02:05]} 23. Qg6+ {[%emt 0:00:04]} Kd8 {[%emt 0:02:03]} 24. Qxe6 {[%emt 0:02:54]} hxg3 {[%emt 0:00:39]} 25. Ba3 {[%emt 0:00:03]} gxh2+ {[%emt 0:06:40]} 26. Kh1 {[%emt 0:00:04]} Bd7 {[%emt 0:02:02]} 27. Qf7 {[%emt 0:05:01]} Rf8 {[%emt 0:04:57]} 28. Qxf8+ {[%emt 0:00:50]} Bxf8 {[%emt 0:00:01]} 29. Bxc5 {[%emt 0:00:07]} Bxc5 {[%emt 0:00:02]} 30. Kxh2 {[%emt 0:00:35]} Bd4 {[%emt 0:00:18]} 31. Rfd1 {[%emt 0:01:13]} Bxf2 {[%emt 0:06:42]} 32. Rxd5 {[%emt 0:00:38]} Kc7 {[%emt 0:00:05]} 33. Rdd1 {[%emt 0:10:08]} Bc6 {[%emt 0:06:41]} 34. Bxg4 {[%emt 0:00:05]} Rh8+ {[%emt 0:01:57]} 35. Bh3 {[%emt 0:00:04]} Be3 {[%emt 0:00:58]} 36. Rf1 {[%emt 0:00:27]} Bd7 {[%emt 0:00:28]} 37. Rf3 {[%emt 0:00:38]} Bd4 {[%emt 0:01:10]} 38. Re1 {[%emt 0:02:48]} Be6 {[%emt 0:01:34]} 39. Re4 {[%emt 0:06:42]} Bb2 {[%emt 0:01:28]} 40. Re2 {[%emt 0:02:50]} Bd4 {[%emt 0:00:12]} 41. Rg3 {[%emt 0:03:05]} Rh5 {[%emt 0:01:06]} 42. Kg2 {[%emt 0:01:13]} Bd5+ {[%emt 0:00:18]} 43. Kf1 {[%emt 0:00:27]} Bxe5 {[%emt 0:00:33]} 44. Ra3 {[%emt 0:01:00]} c3 {[%emt 0:02:11]} 45. Rxe5 {[%emt 0:03:47]} Rxe5 {[%emt 0:00:16]} 46. Rxc3+ {[%emt 0:00:00]} Kb6 {[%emt 0:00:03]} 47. a3 {[%emt 0:00:00]} a5 {[%emt 0:01:04]} 48. Bd7 {[%emt 0:00:00]} Re7 {[%emt 0:00:38]} 49. Ba4 {[%emt 0:00:15]} Re4 {[%emt 0:00:13]} 50. Bc2 {[%emt 0:00:13]} Rh4 {[%emt 0:00:44]} 51. Ke2 {[%emt 0:00:25]} Rh2+ {[%emt 0:00:27]} 52. Ke3 {[%emt 0:00:19]} Bc6 {[%emt 0:00:30]} 53. Kd4 {[%emt 0:01:33]} Rh4+ {[%emt 0:00:30]} 54. Kd3 {[%emt 0:00:42]} Be4+ {[%emt 0:00:16]} 55. Kd2 {[%emt 0:00:21]} Rh2+ {[%emt 0:00:30]} 56. Kc1 {[%emt 0:00:07]} Rh1+ {[%emt 0:00:06]} 57. Kb2 {[%emt 0:00:08]} 1/2-1/2

[Event "Romanian-ch Youth Open U16 2024"]
[Site "Eforie Nord"]
[Date "2024.04.13"]
[Round "2.2"]
[White "Cnejev, Vladimir-Alexandru"]
[Black "Tamas, Christian-Arrydan"]
[Result "1-0"]
[ECO "B22"]
[WhiteElo "2353"]
[BlackElo "2054"]
[Annotator "RC"]
[PlyCount "113"]
[EventDate "2024.04.10"]
[EventType "swiss"]
[EventCountry "ROU"]
[SourceTitle "playchess.com"]
[Source "ChessBase"]
[SourceQuality "1"]
[TimeControl "5400+30"]

1. e4 {[%emt 0:02:35]} c5 {[%emt 0:00:08]} 2. Nf3 {[%emt 0:00:19]} Nc6 {[%emt 0:00:04]} 3. c3 {[%emt 0:00:19]} d5 {[%emt 0:00:07]} 4. exd5 {[%emt 0:00:12]} Qxd5 {[%emt 0:00:06]} 5. d4 {[%emt 0:00:22]} Bf5 {[%emt 0:00:07]} 6. Be3 {[%emt 0:00:26]} Nf6 {[%emt 0:00:06]} 7. Na3 {[%emt 0:00:45]} cxd4 {[%emt 0:00:07]} 8. Bc4 {[%emt 0:00:09]} Qa5 {[%emt 0:00:05]} 9. Nxd4 {[%emt 0:00:06]} Nxd4 {[%emt 0:00:06]} 10. Bxd4 {[%emt 0:00:07]} e5 {[%emt 0:00:06]} 11. Bb5+ {[%emt 0:00:09]} Bd7 {[%emt 0:00:04]} 12. Bxd7+ {[%emt 0:00:10]} Nxd7 {[%emt 0:00:04]} 13. Nc4 {[%emt 0:00:06]} Qc7 {[%emt 0:00:07]} 14. Qe2 {[%emt 0:02:32]} Bd6 {[%emt 0:00:08]} 15. Rd1 {[%emt 0:11:10]} O-O {[%emt 0:09:09]} 16. Be3 {[%emt 0:18:23]} Be7 {[%emt 0:08:43]} 17. O-O {[%emt 0:00:33]} f5 {[%emt 0:15:52]} 18. Rfe1 {[%emt 0:21:35]} Rad8 {[%emt 0:00:57]} 19. f3 {[%emt 0:04:24]} Bh4 {[%emt 0:18:14]} 20. g3 {[%emt 0:04:05]} Bf6 {[%emt 0:12:29]} 21. Nd6 {[%emt 0:14:05]} f4 {[%emt 0:10:08]} 22. Bxa7 {[%emt 0:07:36]} fxg3 {[%emt 0:00:43]} 23. hxg3 {[%emt 0:00:19]} Be7 {[%emt 0:07:49]} 24. Qc4+ {[%emt 0:04:01]} Qxc4 {[%emt 0:00:02]} 25. Nxc4 {[%emt 0:00:00]} Rxf3 {[%emt 0:00:15]} 26. Kg2 {[%emt 0:01:26]} Rf5 {[%emt 0:00:13]} 27. Na5 {[%emt 0:03:04]} Nc5 {[%emt 0:03:27]} 28. Rxd8+ {[%emt 0:03:49]} Bxd8 {[%emt 0:00:06]} 29. Nc4 {[%emt 0:01:41]} Na4 {[%emt 0:04:46]} 30. Rd1 {[%emt 0:00:02]} Bc7 {[%emt 0:04:49]} 31. Rd5 {[%emt 0:00:32]} Rf6 {[%emt 0:00:40]} 32. Rb5 {[%emt 0:00:38]} Rc6 {[%emt 0:00:22]} 33. Rb4 {[%emt 0:00:47]} b5 {[%emt 0:04:35]} 34. Nd2 {[%emt 0:00:07]} Ra6 {[%emt 0:02:11]} 35. Be3 {[%emt 0:00:54]} Ba5 {[%emt 0:00:33]} 36. Rxb5 {[%emt 0:00:15]} Nxc3 {[%emt 0:00:05]} 37. bxc3 {[%emt 0:00:43]} Bxc3 {[%emt 0:00:06]} 38. Nc4 {[%emt 0:00:32]} Rxa2+ {[%emt 0:00:11]} 39. Kf3 {[%emt 0:00:07]} Kf7 {[%emt 0:01:17]} 40. Nxe5+ {[%emt 0:00:26]} Ke6 {[%emt 0:00:05]} 41. Nd3 {[%emt 0:00:37]} Ra8 {[%emt 0:01:15]} 42. Nf4+ {[%emt 0:00:31]} Kf7 {[%emt 0:00:05]} 43. Rb7+ {[%emt 0:00:24]} Kg8 {[%emt 0:00:09]} 44. Nd5 {[%emt 0:00:53]} Be5 {[%emt 0:00:07]} 45. Re7 {[%emt 0:00:28]} Rf8+ {[%emt 0:00:06]} 46. Kg4 {[%emt 0:00:30]} Bb2 {[%emt 0:01:27]} 47. Bf4 {[%emt 0:00:27]} Rd8 {[%emt 0:00:29]} 48. Rb7 {[%emt 0:00:34]} Ba1 {[%emt 0:01:06]} 49. Ne7+ {[%emt 0:00:18]} Kf8 {[%emt 0:00:09]} 50. Nf5 {[%emt 0:00:34]} Bf6 {[%emt 0:00:10]} 51. Bd6+ {[%emt 0:00:30]} Kg8 {[%emt 0:00:11]} 52. Be7 {[%emt 0:00:26]} Bxe7 {[%emt 0:00:04]} 53. Rxe7 {[%emt 0:00:13]} g6 {[%emt 0:00:09]} 54. Nh6+ {[%emt 0:00:05]} Kf8 {[%emt 0:00:12]} 55. Rf7+ {[%emt 0:00:14]} Ke8 {[%emt 0:00:07]} 56. Rxh7 {[%emt 0:00:06]} Rd5 {[%emt 0:00:03]} 57. Rg7 {[%emt 0:00:37]} 1-0

[Event "Romanian-ch Youth Open U16 2024"]
[Site "Eforie Nord"]
[Date "2024.04.13"]
[Round "3.1"]
[White "Craciun, Sasha-Matei"]
[Black "Cnejev, Vladimir-Alexandru"]
[Result "1-0"]
[ECO "C90"]
[WhiteElo "2190"]
[BlackElo "2353"]
[Annotator "RC"]
[PlyCount "95"]
[EventDate "2024.04.10"]
[EventType "swiss"]
[EventCountry "ROU"]
[SourceTitle "playchess.com"]
[Source "ChessBase"]
[SourceQuality "1"]
[TimeControl "5400+30"]

1. e4 {[%emt 0:00:01]} e5 {[%emt 0:04:19]} 2. Nf3 {[%emt 0:00:29]} Nc6 {[%emt 0:00:08]} 3. Bb5 {[%emt 0:00:03]} a6 {[%emt 0:00:09]} 4. Ba4 {[%emt 0:00:03]} Nf6 {[%emt 0:00:25]} 5. O-O {[%emt 0:00:04]} Be7 {[%emt 0:00:29]} 6. Re1 {[%emt 0:00:07]} b5 {[%emt 0:00:14]} 7. Bb3 {[%emt 0:00:04]} O-O {[%emt 0:00:28]} 8. a4 {[%emt 0:01:19]} Bb7 {[%emt 0:00:19]} 9. d3 {[%emt 0:02:35]} d6 {[%emt 0:00:44]} 10. c3 {[%emt 0:04:44]} h6 {[%emt 0:12:21]} 11. h3 {[%emt 0:10:42]} Re8 {[%emt 0:02:39]} 12. Nbd2 {[%emt 0:02:48]} Bf8 {[%emt 0:00:25]} 13. Nf1 {[%emt 0:01:06]} Na5 {[%emt 0:02:14]} 14. Bc2 {[%emt 0:03:19]} c5 {[%emt 0:00:16]} 15. Ng3 {[%emt 0:03:47]} d5 {[%emt 0:14:46]} 16. Bd2 {[%emt 0:08:35]} Qc7 {[%emt 0:35:58]} 17. Re2 {[%emt 0:13:06]} c4 {[%emt 0:04:48]} 18. axb5 {[%emt 0:16:45]} axb5 {[%emt 0:01:14]} 19. Qe1 {[%emt 0:02:15]} Rad8 {[%emt 0:10:06]} 20. d4 {[%emt 0:02:36]} dxe4 {[%emt 0:01:50]} 21. Nxe5 {[%emt 0:02:42]} Nb3 {[%emt 0:01:57]} 22. Rd1 {[%emt 0:03:30]} Bd6 {[%emt 0:04:12]} 23. Nxe4 {[%emt 0:05:08]} Bxe4 {[%emt 0:00:30]} 24. Bxe4 {[%emt 0:00:07]} Bxe5 {[%emt 0:01:08]} 25. dxe5 {[%emt 0:00:31]} Nxe4 {[%emt 0:00:18]} 26. Rxe4 {[%emt 0:00:12]} Qd7 {[%emt 0:00:59]} 27. Re2 {[%emt 0:00:30]} Qd3 {[%emt 0:00:31]} 28. f4 {[%emt 0:03:33]} Qc2 {[%emt 0:00:27]} 29. f5 {[%emt 0:00:54]} Qxf5 {[%emt 0:00:27]} 30. Be3 {[%emt 0:00:55]} Rxd1 {[%emt 0:01:09]} 31. Qxd1 Rxe5 {[%emt 0:00:00]} 32. Bf2 {[%emt 0:01:12]} Rd5 {[%emt 0:00:27]} 33. Qe1 {[%emt 0:01:15]} Kh7 {[%emt 0:00:21]} 34. Kh2 {[%emt 0:01:10]} Qd3 {[%emt 0:00:35]} 35. Re7 {[%emt 0:00:06]} Rf5 {[%emt 0:00:31]} 36. Bg3 {[%emt 0:00:49]} Nd2 {[%emt 0:00:27]} 37. Bf2 {[%emt 0:01:18]} h5 {[%emt 0:00:36]} 38. Qe2 {[%emt 0:03:27]} Qd6+ {[%emt 0:00:30]} 39. Kg1 {[%emt 0:01:54]} Qd5 {[%emt 0:00:30]} 40. Bd4 {[%emt 0:01:26]} Nb3 {[%emt 0:00:28]} 41. Re4 {[%emt 0:01:25]} Nc1 {[%emt 0:00:32]} 42. Qe3 {[%emt 0:00:17]} Nd3 {[%emt 0:00:29]} 43. b4 {[%emt 0:00:01]} Rg5 {[%emt 0:01:04]} 44. g3 {[%emt 0:03:20]} Qf5 {[%emt 0:00:00]} 45. Kg2 {[%emt 0:00:49]} Rg6 {[%emt 0:00:20]} 46. Qf3 {[%emt 0:01:30]} Qd5 {[%emt 0:00:33]} 47. Kh2 {[%emt 0:00:52]} Re6 {[%emt 0:00:33]} 48. Qxf7 {[%emt 0:00:07]} 1-0

[Event "Romanian-ch Youth Open U16 2024"]
[Site "Eforie Nord"]
[Date "2024.04.13"]
[Round "3.2"]
[White "Radu, David Cr."]
[Black "Botea, David-Alexandru"]
[Result "1-0"]
[ECO "D02"]
[WhiteElo "2237"]
[BlackElo "2092"]
[Annotator "RC"]
[PlyCount "45"]
[EventDate "2024.04.10"]
[EventType "swiss"]
[EventCountry "ROU"]
[SourceTitle "playchess.com"]
[Source "ChessBase"]
[SourceQuality "1"]
[TimeControl "5400+30"]

1. d4 {[%emt 0:00:08]} d5 {[%emt 0:00:19]} 2. Bf4 {[%emt 0:00:28]} Nf6 {[%emt 0:00:15]} 3. e3 {[%emt 0:00:08]} e6 {[%emt 0:00:16]} 4. Nf3 {[%emt 0:00:38]} c5 {[%emt 0:00:31]} 5. Nbd2 {[%emt 0:00:27]} Nc6 {[%emt 0:01:34]} 6. c3 {[%emt 0:00:38]} Bd6 {[%emt 0:00:55]} 7. Bg3 {[%emt 0:00:26]} O-O {[%emt 0:00:44]} 8. Bd3 {[%emt 0:00:35]} b6 {[%emt 0:01:18]} 9. e4 {[%emt 0:01:43]} Be7 {[%emt 0:01:06]} 10. e5 {[%emt 0:00:27]} Nh5 {[%emt 0:00:46]} 11. Ng5 {[%emt 0:00:53]} Bxg5 {[%emt 0:05:05]} 12. Qxh5 {[%emt 0:00:16]} g6 {[%emt 0:02:15]} 13. Qe2 {[%emt 0:01:30]} cxd4 {[%emt 0:14:09]} 14. h4 {[%emt 0:00:27]} dxc3 {[%emt 0:17:06]} 15. hxg5 {[%emt 0:17:50]} cxd2+ {[%emt 0:01:14]} 16. Qxd2 {[%emt 0:04:50]} Qe7 {[%emt 0:03:58]} 17. Rh4 {[%emt 0:02:49]} d4 {[%emt 0:15:27]} 18. a3 {[%emt 0:05:42]} Rd8 {[%emt 0:06:34]} 19. Rh6 {[%emt 0:06:57]} Qf8 {[%emt 0:12:05]} 20. Ke2 {[%emt 0:05:30]} Qg7 {[%emt 0:00:38]} 21. Rah1 {[%emt 0:01:12]} Rd5 {[%emt 0:04:24]} 22. Qf4 {[%emt 0:15:16]} Rxe5+ {[%emt 0:08:21]} 23. Kd2 {[%emt 0:00:42]} 1-0

[Event "Romanian-ch Youth Open U16 2024"]
[Site "Eforie Nord"]
[Date "2024.04.14"]
[Round "4.1"]
[White "Coicev, Matei-Andrei"]
[Black "Radu, David Cr."]
[Result "1/2-1/2"]
[ECO "C48"]
[WhiteElo "2230"]
[BlackElo "2237"]
[Annotator "TA"]
[PlyCount "149"]
[EventDate "2024.04.10"]
[EventType "swiss"]
[EventCountry "ROU"]
[SourceTitle "playchess.com"]
[Source "ChessBase"]
[SourceQuality "1"]
[TimeControl "5400+30"]

{[%evp 53,149,-184,-195,-182,-191,-181,-168,-410,-228,-232,-242,-237,-219,-330,-370,-372,-375,-379,-380,-367,-372,-371,-372,-369,-367,-411,-378,-413,-412,-396,-387,-448,-448,-448,-383,-376,-359,-363,-321,-304,-266,-346,-345,-377,-377,-458,-453,-441,-435,-445,0,-441,0,-447,-438,-437,-387,-347,0,-434,-412,-491,-519,-514,-476,-498,-138,-141,0,-458,-430,-568,-550,-561,-544,-608,-706,-682,-503,-787,-771,-720,-662,-712,-643,-605,-245,-245,-245,-501,-235,-391,-14,-14,-14,-14,-8,-8]} 1. e4 {[%emt 0:00:11]} e5 {[%emt 0:00:23]} 2. Nf3 {[%emt 0:00:25]} Nc6 {[%emt 0:00:21]} 3. Nc3 {[%emt 0:00:40]} Nf6 {[%emt 0:00:55]} 4. Bb5 {[%emt 0:00:24]} Nd4 {[%emt 0:09:59]} 5. Be2 {[%emt 0:01:22]} d6 {[%emt 0:06:15]} 6. O-O {[%emt 0:04:57]} Be7 {[%emt 0:01:13]} 7. d3 {[%emt 0:08:39]} Nxe2+ {[%emt 0:04:22]} 8. Qxe2 {[%emt 0:01:37]} c6 {[%emt 0:00:18]} 9. Bg5 {[%emt 0:03:50]} O-O {[%emt 0:02:06]} 10. Nd1 {[%emt 0:07:04]} Ng4 {[%emt 0:26:44]} 11. Bxe7 {[%emt 0:01:24]} Qxe7 {[%emt 0:00:07]} 12. h3 {[%emt 0:01:47]} Nf6 {[%emt 0:01:14]} 13. Ne3 {[%emt 0:01:58]} g6 {[%emt 0:00:56]} 14. Rae1 {[%emt 0:11:55]} Nh5 {[%emt 0:03:56]} 15. Qd1 {[%emt 0:06:51]} Nf4 {[%emt 0:03:17]} 16. h4 {[%emt 0:08:54]} f5 {[%emt 0:10:11]} 17. g3 {[%emt 0:08:27]} Nh3+ {[%emt 0:02:56]} 18. Kg2 {[%emt 0:01:42]} f4 {[%emt 0:00:07]} 19. Nc4 {[%emt 0:00:37]} Bg4 {[%emt 0:00:15]} 20. Ncd2 {[%emt 0:00:45]} g5 {[%emt 0:05:42]} 21. Rh1 {[%emt 0:04:26]} Qd7 {[%emt 0:04:56]} 22. Ref1 {[%emt 0:02:12]} fxg3 {[%emt 0:15:17]} 23. fxg3 {[%emt 0:00:20]} gxh4 {[%emt 0:00:00]} 24. gxh4 {[%emt 0:00:48]} Kh8 {[%emt 0:00:00]} 25. Qe1 {[%emt 0:04:12]} Bxf3+ {[%emt 0:00:00]} 26. Rxf3 {[%emt 0:01:37]} Nf4+ {[%emt 0:00:00]} 27. Kh2 {[%emt 0:02:40] [#]} Rg8 $1 {[%emt 0:00:00]} 28. Rg1 {[%emt 0:00:23] [#]} Qe7 $1 {[%emt 0:00:00]} 29. Rff1 {[%emt 0:02:23]} Raf8 {[%emt 0:00:00]} 30. Nf3 $2 {[%emt 0:04:33]} (30. Nc4) 30... Rxg1 {[%emt 0:00:00]} (30... Qd7 $142 {[%csl Gf4][%cal Rd7h3]} 31. Ng5 h6 32. Rxf4 Rxf4) 31. Nxg1 {[%emt 0:00:08]} Qg7 {[%emt 0:02:00]} 32. Qg3 {[%emt 0:02:03]} Qd7 {[%emt 0:01:11]} 33. Nh3 {[%emt 0:05:37]} (33. Qg5 {is a better defense.}) 33... Rg8 $19 {[%emt 0:00:20]} 34. Qf3 {[%emt 0:00:01]} Rg4 {[%emt 0:00:36]} 35. Qf2 {[%emt 0:01:06]} Rg2+ {[%emt 0:00:14]} 36. Qxg2 {[%emt 0:00:02]} Nxg2 {[%emt 0:00:01]} 37. Kxg2 {[%emt 0:00:01]} Qg4+ {[%emt 0:00:17]} 38. Kh2 {[%emt 0:00:04]} Qxh4 {[%emt 0:00:45]} 39. Rf8+ {[%emt 0:00:36]} Kg7 {[%emt 0:00:07]} 40. Rf2 {[%emt 0:00:03]} h5 {[%emt 0:00:37]} 41. Rg2+ {[%emt 0:00:41]} Kh6 {[%emt 0:00:10]} 42. Rf2 {[%emt 0:00:55]} d5 {[%emt 0:01:07]} 43. Re2 {[%emt 0:00:45]} dxe4 {[%emt 0:00:23]} 44. Rxe4 {[%emt 0:00:20]} Qf6 {[%emt 0:00:02]} 45. Kg2 {[%emt 0:00:21]} Qe6 {[%emt 0:00:50]} 46. b3 {[%emt 0:00:24]} Qf6 {[%emt 0:01:47]} 47. Re2 {[%emt 0:00:39]} h4 {[%emt 0:00:20]} 48. Kh2 {[%emt 0:00:39]} Qf3 {[%emt 0:00:31]} 49. Rg2 {[%emt 0:00:05]} b5 {[%emt 0:00:43]} 50. Nf2 {[%emt 0:00:14]} Qf4+ {[%emt 0:01:13]} 51. Kh3 {[%emt 0:00:22]} Qf3+ {[%emt 0:00:04]} 52. Kh2 $1 {[%emt 0:00:01]} Qf4+ {[%emt 0:00:51]} 53. Kh3 {[%emt 0:00:01]} Kh5 {[%emt 0:00:34]} 54. Ne4 {[%emt 0:00:28]} Qf1 {[%emt 0:00:29]} 55. Kh2 {[%emt 0:00:22]} Qf4+ {[%emt 0:00:04]} 56. Kh3 {[%emt 0:00:04]} a5 {[%emt 0:00:44]} 57. Rf2 {[%emt 0:00:32]} Qe3+ {[%emt 0:00:20]} 58. Kh2 {[%emt 0:00:13]} h3 {[%emt 0:00:33]} 59. Rf8 {[%emt 0:01:01]} Qe2+ $2 {[%emt 0:00:46]} (59... Qc1 $19 60. Rf2 Kh4) 60. Rf2 $17 {[%emt 0:00:19]} Qe3 $2 {[%emt 0:00:02][%mdl 8192]} (60... Qd1 $17 61. Kxh3 c5) 61. Rf8 $19 {[%emt 0:00:05]} a4 {[%emt 0:00:45]} 62. bxa4 {[%emt 0:01:24]} bxa4 {[%emt 0:00:02]} 63. Rg8 {[%emt 0:02:28]} Kh6 {[%emt 0:00:29]} 64. Rg3 {[%emt 0:00:21]} Qe2+ {[%emt 0:00:31]} 65. Kxh3 {[%emt 0:00:04]} Qxc2 {[%emt 0:00:18]} 66. a3 {[%emt 0:00:49]} (66. Kg4 $142 Qxa2 67. Kf5 Qf7+ 68. Kxe5) 66... Qa2 $19 {[%emt 0:00:05]} 67. Kg4 {[%emt 0:00:38]} Kg6 {[%emt 0:00:40]} 68. Kf3+ {[%emt 0:00:18]} Kf7 {[%emt 0:00:13]} 69. Nd6+ {[%emt 0:00:06]} Ke7 {[%emt 0:00:31]} (69... Kf6 $142 70. Nc4 Qh2) 70. Nc4 $19 {[%emt 0:00:04]} Kf6 {[%emt 0:01:30]} 71. Ke3 $2 {[%emt 0:00:32]} (71. Rg4) 71... Qa1 {[%emt 0:00:21]} (71... Qh2 $142 72. Kf3 c5) 72. Rf3+ $2 {[%emt 0:01:07]} (72. Ke2) 72... Ke6 $2 {[%emt 0:01:01]} (72... Kg5 $19 {[%cal Ra1e1]} 73. Ke2 Qa2+ 74. Ke3 Qc2 75. Nxe5 Qc5+ 76. d4 Qxa3+ 77. Ke4 Qa2 78. Rf5+ Kh4 79. Rf4+ Kh3 80. Nxc6 a3 81. Rf3+ Kg2) 73. Kd2 $1 $11 {[%emt 0:00:56]} e4 {[%emt 0:00:32]} 74. Re3 $1 {[%emt 0:00:13]} Kf5 {[%emt 0:00:47]} 75. Rxe4 {[%emt 0:03:45]} 1/2-1/2